Workbook

Sheet Liquidacion
B1: CIUDAD DE EJECUCION DEL CONTRATO | K1: CIUDAD DE EJECUCION
B4: Ciudad Ejecución | C4: BOGOTA, D.C.
B7: CERTIFICACIÓN DE CONDICIÓN DE DECLARANTE - Ley 1819 de 2016
B9: Aportes Obligatorios de ARL? (*) | D9: SI | E9: Pagos por intereses de vivienda? (*) | H9: NO | I9: 0
B11: Declarante de renta por el año 2018? | D11: SI | E11: Pagos a Medicina Prepagada /Seguros de Salud? (*) | H11: SI | I11: 0
B13: Dependientes? (*) | D13: SI | E13: Aportes Voluntarios a Fondos de Pensiones/AFC? (*) | H13: NO | I13: 0
B16: LIQUIDACION HONORARIOS NOVIEMBRE (Pago 1)
B17: HONORARIOS NOVIEMBRE | G17: 4300000 | O17: =UPPER(CONVERTIRNUM(G17)) -> CUATRO MILLONES TRESCIENTOS MIL PESOS
B19: LIQUIDACIÓN DE PAGO A SEGURIDAD SOCIAL - APORTES MES ANTERIOR
B20: IBC OCTUBRE | G20: =+G17*0.4 -> 1720000
B21: Aporte obligatorio a seguridad social salud mes Anterior | G21: =ROUND(+G20*12.5%,-2) -> 215000
B22: Aporte obligatorio a seguridad social Pensión Mes Anterior | G22: =ROUND(+G20*0.16,-2) -> 275200
B23: Aporte obligatorio a Fondo de solidaridad Pensional Mes Anterior | G23: =ROUND(IF(G20>smlv*4,Liquidacion!G20*1%,0),-2) -> 0
B24: ARL Riesgos Mes Anterior | G24: =IF(D9="SI",ROUND(G20*0.522%,-2),) -> 9000
B26: NETO A PAGAR NOVIEMBRE | H26: BASE | I26: % | J26: VALOR | X26: Cálculo en $ retención
B27: =+B17 -> HONORARIOS NOVIEMBRE | J27: =+G17 -> 4300000 | X27: =IF($Q$30>87,(IF($Q$30<=145,((($Q$30-87)*19%)*$W$22),0)),0) -> 0
B28: - Retención en la fuente | H28: =+H58 -> 2528100 | I28: =-IFERROR(+J28/H28,0) -> 0 | J28: =-N53 -> 0 | X28: =IF($Q$30>145,(IF($Q$30<=335,(((($Q$30-145)*28%)+11)*$W$22),0)),0) -> 0
B29: - Retención de industria y comercio | H29: =+G17-(G21+G22+G23+G24) -> 3800800 | I29: =IFERROR(VLOOKUP($C$4,TARIFAS!$B$3:$D$49,3,FALSE),0) -> 0.00966 | J29: =-H29*I29 -> -36715.728 | X29: =IF($Q$30>335,(IF($Q$30<=640,(((($Q$30-335)*33%)+64)*$W$22),0)),0) -> 0
B30: - Deducción por abono en cuenta AFC | J30: =+I13 -> 0 | X30: =IF($Q$30>945,(IF($Q$30<=2300,(((($Q$30-945)*37%)+272)*$W$22),0)),0) -> 0
B31: Neto a pagar NOVIEMBRE(*) | J31: =SUM(J27:J30) -> 4263284.272 | X31: =IF($Q$30>2300,(((($Q$30-2300)*39%)*$W$22)+(773*$Q$28)),0) -> 0
B32: (*) Las deducciones mencionadas, corresponden a valores sugeridos, los mismos, pueden cambiar conforme a las actualizaciones tributarias municipales y nacionales o por error en los valores deducibles
B36: TABLA DE HONORARIOS
B38: HONORARIOS | G38: =+G17 -> 4300000 | H38: 0.4 | L38: Art. 383 del ET (Art. 23 ley 1111 de 2006)
B39: BASE SEGURIDAD SOCIAL | G39: =+G20 -> 1720000 | K39: =+E61*4 -> 3312464 | L39: Rangos en UVT | N39: Tarifa marginal | O39: Impuesto
B40: INGRESOS NO CONSTITUTIVOS DE RENTA NI GANANCIA OCASIONAL | L40: Desde | M40: Hasta
B41: Aportes obligatorios al sistema general de salud art 56 | G41: 0.125 | H41: =+G21 -> 215000 | L41: >0 | M41: 87 | N41: 0 | O41: 0
B42: Aportes al sistema general de pensiones art 55 + FONDO DE SOLIDARIDAD | G42: 0.16 | H42: =+G22+G23 -> 275200 | L42: 87 | M42: 145 | N42: 0.19 | O42: (Ingreso laboral gravado expresado en UVT menos 87 UVT) X 19%
B43: ARL | G43: 0.01 | H43: =+G24 -> 9000 | L43: 145 | M43: 335 | N43: 0.28 | O43: (Ingreso laboral gravado expresado en UVT menos 145 UVT) X 28% más 11 UVT
B44: TOTAL INGRESOS | H44: =SUM(H41:H43) -> 499200 | L44: 335 | M44: 640 | N44: 0.33 | O44: (Ingreso laboral gravado expresado en UVT menos 335 UVT) X 33% más 64 UVT
B45: MAXIMO RENTAS EXENTAS. Este valor no podra exceder el 30% del ingreso (total ingreso menos ingresos no constitutivos de renta) | G45: 0 | H45: =(G38-H44)*0.3 -> 1140240 | L45: 640 | M45: 945 | N45: 0.35 | O45: (Ingreso laboral gravado expresado en UVT menos 640 UVT) X 35% más 165 UVT
B46: AFC | G46: =+I13 -> 0 | H46: =IF(+G46>H45,H45,+G46) -> 0 | L46: 945 | M46: 2300 | N46: 0.37 | O46: (Ingreso laboral gravado expresado en UVT menos 945 UVT) X 37% más 272 UVT
B47: Pension voluntaria | L47: 2300 | M47: En adelante | N47: 0.39 | O47: (Ingreso laboral gravado expresado en UVT menos 2.300 UVT) X 39% más 773
B48: TOTAL RENTAS EXENTAS | H48: =SUM(H46:H47) -> 0
B49: DEDUCCIONES | K49: =+H44+H53 -> 499200
B50: Prepagada | G50: =+I11/12 -> 0 | H50: =IF(G50>E63,E63,G50) -> 0
B51: Intereses de Vivienda | G51: =+I9/12 -> 0 | H51: =IF(G51>E64,E64,G51) -> 0 | L51: RETENCION EN LA FUENTE REGIMEN SIMPLIFICADO
B52: Dependientes | G52: =IF(D13="SI",H52,0) -> 430000 | H52: =IF(G38*10%>E65,E65,G38*10%) -> 430000 | L52: RET. FTE EN UVT | N52: =IF(H59<M41,N41,IF(H59<M42,(H59-L42)*N42,IF(H59<M43,((H59-L43)*N43)+11,IF(H59<M44,(H59-L44)*N44+64,IF(H59<M45,(H59-L45)*N45+165,IF(H59<M46,(H59-L46)*N46+272,(H59-L47)*N47+773)))))) -> 0
L53: RET. FTE EN PESOS | N53: =ROUND(N52*E62,) -> 0
B54: TOTAL DEDUCCIONES | H54: =+H50+H51+G52+H53 -> 430000
B56: BASE GRAVABLE | H56: =+G38-H44-H48-H54 -> 3370800
B57: Menos renta exenta 25% | H57: =+H56*25/100 -> 842700
B58: BASE GRAVABLE DEFINITIVA PESOS | H58: =(G38-H44-H60) -> 2528100
B59: BASE GRAVABLE DEFINITIVA EN UVT | H59: =+H58/E62 -> 73.77006128
B60: La suma de rentas exentas mas deducciones no debe ser superior al 40% del ingreso art 388 ley 1819 -2016 | G60: =(G38-H44)*0.4 -> 1520320 | H60: =+IF((H48+H54+H57)>G60,G60,(H48+H54+H57)) -> 1272700
B61: SALARIO MINIMO 2019 | E61: 828116
B62: VR. UVT 2019 | E62: 34270
B63: TOPE MEDICINA PREPAGADA 16 UVT | D63: 16 | E63: =+E62*D63 -> 548320
B64: TOPE INTERESES DE VIVIENDAHASTA 100 UVT | D64: 100 | E64: =+E62*D64 -> 3427000
B65: TOPE INTERESES DE VIVIENDAHASTA 100 UVT | D65: 32 | E65: =+E62*D65 -> 1096640
B66: TOPE INTERESES DE VIVIENDAHASTA 100 UVT | E66: =737717*4 -> 2950868
B68: LIQUIDACION HONORARIOS DICIEMBRE (Pago 2)
B69: HONORARIOS DICIEMBRE | G69: =+G17 -> 4300000 | O69: =UPPER(CONVERTIRNUM(G69)) -> CUATRO MILLONES TRESCIENTOS MIL PESOS
B71: LIQUIDACIÓN DE PAGO A SEGURIDAD SOCIAL - APORTES MES ANTERIOR
B72: IBC NOVIEMBRE | G72: =+G69*0.4 -> 1720000
B73: Aporte obligatorio a seguridad social salud mes Anterior | G73: =ROUND(+G72*12.5%,-2) -> 215000
B74: Aporte obligatorio a seguridad social Pensión Mes Anterior | G74: =ROUND(+G72*0.16,-2) -> 275200
B75: Aporte obligatorio a Fondo de solidaridad Pensional Mes Anterior | G75: =ROUND(IF(G72>smlv*4,Liquidacion!G72*1%,0),-2) -> 0
B76: ARL Riesgos Mes Anterior | G76: =IF(D9="SI",ROUND(G72*0.522%,-2),) -> 9000
B78: NETO A PAGAR DICIEMBRE | H78: BASE | I78: % | J78: VALOR | X78: Cálculo en $ retención
B79: =+B69 -> HONORARIOS DICIEMBRE | J79: =+G69 -> 4300000 | X79: =IF($Q$30>87,(IF($Q$30<=145,((($Q$30-87)*19%)*$W$22),0)),0) -> 0
B80: - Retención en la fuente PAGO 2 | H80: =+H111 -> 5056200 | I80: =-IFERROR(+J80/H80,0) -> 0.07937660694 | J80: =-N106 -> -401344 | X80: =IF($Q$30>145,(IF($Q$30<=335,(((($Q$30-145)*28%)+11)*$W$22),0)),0) -> 0
B81: + Retencion en la fuente Noviembre descontada en el pago 1 | J81: =-J28 -> 0
B82: - Retención de industria y comercio | H82: =+G69-(G73+G74+G75+G76) -> 3800800 | I82: =IFERROR(VLOOKUP($C$4,TARIFAS!$B$3:$D$49,3,FALSE),0) -> 0.00966 | J82: =-H82*I82 -> -36715.728 | X82: =IF($Q$30>335,(IF($Q$30<=640,(((($Q$30-335)*33%)+64)*$W$22),0)),0) -> 0
B83: - Deducción por abono en cuenta AFC | J83: =I13 -> 0 | X83: =IF($Q$30>945,(IF($Q$30<=2300,(((($Q$30-945)*37%)+272)*$W$22),0)),0) -> 0
B84: Neto a pagar DICIEMBRE(*) | J84: =SUM(J79:J83) -> 3861940.272 | X84: =IF($Q$30>2300,(((($Q$30-2300)*39%)*$W$22)+(773*$Q$28)),0) -> 0
B85: =+B32 -> (*) Las deducciones mencionadas, corresponden a valores sugeridos, los mismos, pueden cambiar conforme a las actualizaciones tributarias municipales y nacionales o por error en los valores deducibles
B89: TABLA DE HONORARIOS
B91: HONORARIOS | G91: =+G17+G69 -> 8600000 | H91: 0.4 | L91: Art. 383 del ET (Art. 23 ley 1111 de 2006)
B92: BASE SEGURIDAD SOCIAL | K92: =+E114*4 -> 3312464 | L92: Rangos en UVT | N92: Tarifa marginal | O92: Impuesto
B93: INGRESOS NO CONSTITUTIVOS DE RENTA NI GANANCIA OCASIONAL | L93: Desde | M93: Hasta
B94: Aportes obligatorios al sistema general de salud art 56 | G94: 0.125 | H94: =+G21+G73 -> 430000 | L94: >0 | M94: 87 | N94: 0 | O94: 0
B95: Aportes al sistema general de pensiones art 55 + FONDO DE SOLIDARIDAD | G95: 0.16 | H95: =+G22+G74+G75+G23 -> 550400 | L95: 87 | M95: 145 | N95: 0.19 | O95: (Ingreso laboral gravado expresado en UVT menos 87 UVT) X 19%
B96: ARL | G96: 0.01 | H96: =+G24+G76 -> 18000 | L96: 145 | M96: 335 | N96: 0.28 | O96: (Ingreso laboral gravado expresado en UVT menos 145 UVT) X 28% más 11 UVT
B97: TOTAL INGRESOS | H97: =SUM(H94:H96) -> 998400 | L97: 335 | M97: 640 | N97: 0.33 | O97: (Ingreso laboral gravado expresado en UVT menos 335 UVT) X 33% más 64 UVT
B98: MAXIMO RENTAS EXENTAS. Este valor no podra exceder el 30% del ingreso (total ingreso menos ingresos no constitutivos de renta) | G98: 0 | H98: =(G91-H97)*0.3 -> 2280480 | L98: 640 | M98: 945 | N98: 0.35 | O98: (Ingreso laboral gravado expresado en UVT menos 640 UVT) X 35% más 165 UVT
B99: AFC | G99: =+I13 -> 0 | H99: =IF(+G99>H98,H98,+G99) -> 0 | L99: 945 | M99: 2300 | N99: 0.37 | O99: (Ingreso laboral gravado expresado en UVT menos 945 UVT) X 37% más 272 UVT
B100: Pension voluntaria | L100: 2300 | M100: En adelante | N100: 0.39 | O100: (Ingreso laboral gravado expresado en UVT menos 2.300 UVT) X 39% más 773
B101: TOTAL RENTAS EXENTAS | H101: =SUM(H99:H100) -> 0
B102: DEDUCCIONES | K102: =+H97+H106 -> 998400
B103: Prepagada | G103: =+I10/12 -> 0 | H103: =IF(G103>E116,E116,G103) -> 0
B104: Intereses de Vivienda | G104: =+I9/12 -> 0 | H104: =IF(G104>E117,E117,G104) -> 0 | L104: RETENCION EN LA FUENTE REGIMEN SIMPLIFICADO
B105: Dependientes | G105: =IF(D13="SI",H105,0) -> 860000 | H105: =IF(G91*10%>E118,E118,G91*10%) -> 860000 | L105: RET. FTE EN UVT | N105: =IF(H112<M94,N94,IF(H112<M95,(H112-L95)*N95,IF(H112<M96,((H112-L96)*N96)+11,IF(H112<M97,(H112-L97)*N97+64,IF(H112<M98,(H112-L98)*N98+165,IF(H112<M99,(H112-L99)*N99+272,(H112-L100)*N100+773)))))) -> 11.71123432
L106: RET. FTE EN PESOS | N106: =ROUND(N105*E115,) -> 401344
B107: TOTAL DEDUCCIONES | H107: =+H103+H104+G105+H106 -> 860000
B109: BASE GRAVABLE | H109: =+G91-H97-H101-H107 -> 6741600
B110: Menos renta exenta 25% | H110: =+H109*25/100 -> 1685400
B111: BASE GRAVABLE DEFINITIVA PESOS | H111: =(G91-H97-H113) -> 5056200
B112: BASE GRAVABLE DEFINITIVA EN UVT | H112: =+H111/E115 -> 147.5401226
B113: La suma de rentas exentas mas deducciones no debe ser superior al 40% del ingreso art 388 ley 1819 -2016 | G113: =(G91-H97)*0.4 -> 3040640 | H113: =+IF((H101+H107+H110)>G113,G113,(H101+H107+H110)) -> 2545400
B114: SALARIO MINIMO 2019 | E114: 828116
B115: VR. UVT 2019 | E115: 34270
B116: TOPE MEDICINA PREPAGADA 16 UVT | D116: 16 | E116: =+E115*D116 -> 548320
B117: TOPE INTERESES DE VIVIENDAHASTA 100 UVT | D117: 100 | E117: =+E115*D117 -> 3427000
B118: TOPE INTERESES DE VIVIENDAHASTA 100 UVT | D118: 32 | E118: =+E115*D118 -> 1096640
B119: TOPE INTERESES DE VIVIENDAHASTA 100 UVT | E119: =737717*4 -> 2950868

Sheet Cuenta de Cobro (hidden)
B1: FORMATO CUENTA DE COBRO PARA PAGO DE CONTRATOS POR CONCEPTO DE HONORARIOS Y/O PRESTACIÓN DE SERVICIOS PERSONALES | J1: Código | K1: 710,14,15-7
J2: Versión | K2: 1
B3: PROCEDIMIENTO DE PAGOS | J3: Fecha | K3: 2019-03-22
B4: GESTION FINANCIERA | J4: Pagina | K4: 1
A5: CUENTA DE COBRO
A7: LA UNIDAD DE ATENCION Y REPARACION INTEGRAL A VICTIMAS
A8: NIT. 900.490.473 - 6
A10: DEBE A:
A11: NOMBRE: | B11: =+Liquidacion!#REF! -> 
A13: ID CEDULA : | B13: =+Liquidacion!#REF! ->  | H13: DE | I13: CIUDAD DE EXPEDICIÓN
A15: LA SUMA DE:
A16: (VALOR EN LETRAS) | B16: =+Liquidacion!#REF! -> 
A19: (VALOR NUMEROS) | B19: =+Liquidacion!G17 -> 4300000
A21: POR CONCEPTO DE:
A23: CONTRATO No. | B23: =+Liquidacion!#REF! ->  | E23: REGISTRO PRESUPUESTAL | I23: =+Liquidacion!#REF! -> 
A25: OBJETO DEL CONTRATO: | B25: Enunciar objeto del contrato
A29: PERIODO COMPRENDIDO ENTRE: | B29: =+Liquidacion!#REF! ->  | G29: y | I29: =+Liquidacion!#REF! -> 
A31: FECHA: | B31: Fecha
A33: CIUDAD EJECUCION CONTRATO | B33: =IF(Liquidacion!C4="otro",Liquidacion!G4,Liquidacion!C4) -> BOGOTA, D.C.
A35: TELÉFONO | B35: Telefono personal de contacto
A37: CORREO ELECTRONICO | B37: =+Liquidacion!#REF! -> 
A40: FIRMA

Sheet TARIFAS (hidden)
B1: Ciudad | C1: REGIMEN | D1: TARIFA | E1: TARIFA X 1000
B2: Seleccionar | H2: =IFERROR(INDEX($B$2:$B$99, MATCH(0, INDEX(COUNTIF($H$1:H1, $B$2:$B$99), 0, 0), 0)),"") -> Seleccionar | J2: ARMENIA
A3: =B3&C3 -> ARMENIAResponsable del Impuesto a las Ventas | B3: ARMENIA | C3: Responsable del Impuesto a las Ventas | D3: =+E3/1000 -> 0.005 | E3: 5 | H3: ABEJORRAL | J3: BARRANCABERMEJA
A4: =B4&C4 -> ARMENIANo responsable del impuesto a las ventas | B4: ARMENIA | C4: No responsable del impuesto a las ventas | D4: =+E4/1000 -> 0.005 | E4: 5 | H4: ABREGO | J4: BARRANQUILLA
A5: BARRANCABERMEJAResponsable del Impuesto a las Ventas | B5: BARRANCABERMEJA | C5: Responsable del Impuesto a las Ventas | D5: 0.006 | E5: 6 | H5: ABRIAQUI | J5: BOGOTA, D.C.
A6: BARRANCABERMEJANo responsable del impuesto a las ventas | B6: BARRANCABERMEJA | C6: No responsable del impuesto a las ventas | D6: 0.006 | E6: 6 | H6: ACACIAS | J6: BUCARAMANGA
A7: BARRANQUILLAResponsable del Impuesto a las Ventas | B7: BARRANQUILLA | C7: Responsable del Impuesto a las Ventas | D7: 0.007 | E7: 7 | H7: ACANDI | J7: BUENAVENTURA
A8: BARRANQUILLANo responsable del impuesto a las ventas | B8: BARRANQUILLA | C8: No responsable del impuesto a las ventas | D8: 0.007 | E8: 7 | H8: ACEVEDO | J8: CALI
A9: BOGOTA, D.C.No responsable del impuesto a las ventas | B9: BOGOTA, D.C. | C9: No responsable del impuesto a las ventas | D9: 0.00966 | E9: 9.66 | H9: AGRADO | J9: CUCUTA
A10: BUCARAMANGAResponsable del Impuesto a las Ventas | B10: BUCARAMANGA | C10: Responsable del Impuesto a las Ventas | D10: 0.005 | E10: 5 | H10: AGUA DE DIOS | J10: GRANADA
A11: BUCARAMANGANo responsable del impuesto a las ventas | B11: BUCARAMANGA | C11: No responsable del impuesto a las ventas | D11: 0 | E11: 0 | H11: AGUACHICA | J11: IBAGUE
A12: BUENAVENTURAResponsable del Impuesto a las Ventas | B12: BUENAVENTURA | C12: Responsable del Impuesto a las Ventas | D12: 0 | E12: 0 | H12: AGUADA | J12: LETICIA
A13: BUENAVENTURANo responsable del impuesto a las ventas | B13: BUENAVENTURA | C13: No responsable del impuesto a las ventas | D13: 0 | E13: 0 | H13: AGUADAS | J13: MEDELLIN
A14: CALIResponsable del Impuesto a las Ventas | B14: CALI | C14: Responsable del Impuesto a las Ventas | D14: 0.01 | E14: 10 | H14: AGUAZUL | J14: MOCOA
A15: CALINo responsable del impuesto a las ventas | B15: CALI | C15: No responsable del impuesto a las ventas | D15: 0 | E15: 0 | H15: AGUSTIN CODAZZI | J15: NEIVA
A16: CARTAGENAResponsable del Impuesto a las Ventas | B16: CARTAGENA | C16: Responsable del Impuesto a las Ventas | D16: 0.008 | E16: 8 | H16: AIPE | J16: PASTO
A17: CARTAGENANo responsable del impuesto a las ventas | B17: CARTAGENA | C17: No responsable del impuesto a las ventas | D17: 0.008 | E17: 8 | H17: ALBAN | J17: PEREIRA
A18: CUCUTAResponsable del Impuesto a las Ventas | B18: CUCUTA | C18: Responsable del Impuesto a las Ventas | D18: 0.0058 | E18: 5.8 | H18: ALBANIA | J18: POPAYAN
A19: CUCUTANo responsable del impuesto a las ventas | B19: CUCUTA | C19: No responsable del impuesto a las ventas | D19: 0.0058 | E19: 5.8 | H19: ALCALA | J19: QUIBDO
A20: GRANADAResponsable del Impuesto a las Ventas | B20: GRANADA | C20: Responsable del Impuesto a las Ventas | D20: 0 | H20: ALDANA | J20: SAN JOSE DEL GUAVIARE
A21: GRANADANo responsable del impuesto a las ventas | B21: GRANADA | C21: No responsable del impuesto a las ventas | D21: 0 | H21: ALEJANDRIA | J21: TUNJA
A22: IBAGUEResponsable del Impuesto a las Ventas | B22: IBAGUE | C22: Responsable del Impuesto a las Ventas | D22: 0.0035 | E22: 3.5 | H22: ALGARROBO | J22: VALLEDUPAR
A23: IBAGUENo responsable del impuesto a las ventas | B23: IBAGUE | C23: No responsable del impuesto a las ventas | D23: 0.0035 | E23: 3.5 | H23: ALGECIRAS | J23: VILLAVICENCIO
A24: LETICIAResponsable del Impuesto a las Ventas | B24: LETICIA | C24: Responsable del Impuesto a las Ventas | D24: 0 | H24: ALMAGUER | J24: YOPAL
A25: LETICIANo responsable del impuesto a las ventas | B25: LETICIA | C25: No responsable del impuesto a las ventas | D25: 0 | H25: ALMEIDA
A26: MEDELLINResponsable del Impuesto a las Ventas | B26: MEDELLIN | C26: Responsable del Impuesto a las Ventas | D26: 0.002 | E26: 2 | H26: ALPUJARRA
A27: MEDELLINNo responsable del impuesto a las ventas | B27: MEDELLIN | C27: No responsable del impuesto a las ventas | D27: 0 | E27: 0 | H27: ALTAMIRA
A28: MOCOAResponsable del Impuesto a las Ventas | B28: MOCOA | C28: Responsable del Impuesto a las Ventas | D28: 0.01 | E28: 10 | H28: ALTO BAUDO
A29: MOCOANo responsable del impuesto a las ventas | B29: MOCOA | C29: No responsable del impuesto a las ventas | D29: 0.01 | E29: 10 | H29: ALTOS DEL ROSARIO
A30: NEIVAResponsable del Impuesto a las Ventas | B30: NEIVA | C30: Responsable del Impuesto a las Ventas | D30: 0.005 | E30: 5 | H30: ALVARADO
A31: NEIVANo responsable del impuesto a las ventas | B31: NEIVA | C31: No responsable del impuesto a las ventas | D31: 0.0035 | E31: 3.5 | H31: AMAGA
A32: =B32&C32 -> PASTOResponsable del Impuesto a las Ventas | B32: PASTO | C32: Responsable del Impuesto a las Ventas | D32: 0.005 | E32: 5 | H32: AMALFI
A33: PASTONo responsable del impuesto a las ventas | B33: PASTO | C33: No responsable del impuesto a las ventas | D33: 0.005 | E33: 5 | H33: AMBALEMA
A34: PEREIRAResponsable del Impuesto a las Ventas | B34: PEREIRA | C34: Responsable del Impuesto a las Ventas | D34: 0.002 | E34: 2 | H34: ANAPOIMA
A35: PEREIRANo responsable del impuesto a las ventas | B35: PEREIRA | C35: No responsable del impuesto a las ventas | D35: 0.002 | E35: 2 | H35: ANCUYA
A36: POPAYANResponsable del Impuesto a las Ventas | B36: POPAYAN | C36: Responsable del Impuesto a las Ventas | D36: 0.006 | E36: 6 | H36: ANDALUCIA
A37: POPAYANNo responsable del impuesto a las ventas | B37: POPAYAN | C37: No responsable del impuesto a las ventas | D37: 0.006 | E37: 6 | H37: ANDES
A38: QUIBDOResponsable del Impuesto a las Ventas | B38: QUIBDO | C38: Responsable del Impuesto a las Ventas | D38: 0.002 | E38: 2 | H38: ANGELOPOLIS
A39: QUIBDONo responsable del impuesto a las ventas | B39: QUIBDO | C39: No responsable del impuesto a las ventas | D39: 0.002 | E39: 2 | H39: ANGOSTURA
A40: SAN JOSE DEL GUAVIAREResponsable del Impuesto a las Ventas | B40: SAN JOSE DEL GUAVIARE | C40: Responsable del Impuesto a las Ventas | D40: 0.005 | E40: 5 | H40: ANOLAIMA
A41: SAN JOSE DEL GUAVIARENo responsable del impuesto a las ventas | B41: SAN JOSE DEL GUAVIARE | C41: No responsable del impuesto a las ventas | D41: 0 | E41: 0 | H41: ANORI
A42: TUNJAResponsable del Impuesto a las Ventas | B42: TUNJA | C42: Responsable del Impuesto a las Ventas | D42: 0.009 | E42: 9 | H42: ANSERMA
A43: TUNJANo responsable del impuesto a las ventas | B43: TUNJA | C43: No responsable del impuesto a las ventas | D43: 0.009 | E43: 9 | H43: ANSERMANUEVO
A44: VALLEDUPARResponsable del Impuesto a las Ventas | B44: VALLEDUPAR | C44: Responsable del Impuesto a las Ventas | D44: 0.01 | E44: 10 | H44: ANZA
A45: VALLEDUPARNo responsable del impuesto a las ventas | B45: VALLEDUPAR | C45: No responsable del impuesto a las ventas | D45: 0 | E45: 0 | H45: ANZOATEGUI
A46: VILLAVICENCIOResponsable del Impuesto a las Ventas | B46: VILLAVICENCIO | C46: Responsable del Impuesto a las Ventas | D46: 0.004 | E46: 4 | H46: APARTADO
A47: VILLAVICENCIONo responsable del impuesto a las ventas | B47: VILLAVICENCIO | C47: No responsable del impuesto a las ventas | D47: 0.004 | E47: 4 | H47: APIA
A48: YOPALResponsable del Impuesto a las Ventas | B48: YOPAL | C48: Responsable del Impuesto a las Ventas | D48: 0.01 | E48: 10 | H48: APULO
A49: YOPALNo responsable del impuesto a las ventas | B49: YOPAL | C49: No responsable del impuesto a las ventas | D49: 0.01 | E49: 10 | H49: AQUITANIA
H50: ARACATACA
H51: ARANZAZU
H52: ARATOCA
H53: ARAUCA
H54: ARAUQUITA
H55: ARBELAEZ
H56: ARBOLEDA
H57: ARBOLEDAS
H58: ARBOLETES
H59: ARCABUCO
H60: ARENAL
H61: ARGELIA
H62: ARIGUANI
H63: ARJONA
H64: ARMENIA
H65: ARMERO
H66: ARROYOHONDO
H67: ASTREA
H68: ATACO
H69: ATRATO
H70: AYAPEL
H71: BAGADO
H72: BAHIA SOLANO
H73: BAJO BAUDO
H74: BALBOA
H75: BARANOA
H76: BARAYA
H77: BARBACOAS
H78: BARBOSA
H79: BARICHARA
H80: BARRANCA DE UPIA
H81: BARRANCABERMEJA
H82: BARRANCAS
H83: BARRANCO DE LOBA
H84: BARRANCO MINAS
H85: BARRANQUILLA
H86: BECERRIL
H87: BELALCAZAR
H88: BELEN
H89: BELEN DE LOS ANDAQUIES
H90: BELEN DE UMBRIA
H91: BELLO
H92: BELMIRA
H93: BELTRAN
H94: BERBEO
H95: BETANIA
H96: BETEITIVA
H97: BETULIA
H98: BITUIMA
H99: BOAVITA
H100: BOCHALEMA
H101: BOGOTA, D.C.
H102: BOJACA
H103: BOJAYA
H104: BOLIVAR
H105: BOSCONIA
H106: BOYACA
H107: BRICEÑO
H108: BUCARAMANGA
H109: BUCARASICA
H110: BUENAVENTURA
H111: BUENAVISTA
H112: BUENOS AIRES
H113: BUESACO
H114: BUGALAGRANDE
H115: BURITICA
H116: BUSBANZA
H117: CABRERA
H118: CABUYARO
H119: CACAHUAL
H120: CACERES
H121: CACHIPAY
H122: CACHIRA
H123: CACOTA
H124: CAICEDO
H125: CAICEDONIA
H126: CAIMITO
H127: CAJAMARCA
H128: CAJIBIO
H129: CAJICA
H130: CALAMAR
H131: CALARCA
H132: CALDAS
H133: CALDONO
H134: CALI
H135: CALIFORNIA
H136: CALIMA
H137: CALOTO
H138: CAMPAMENTO
H139: CAMPO DE LA CRUZ
H140: CAMPOALEGRE
H141: CAMPOHERMOSO
H142: CANALETE
H143: CANDELARIA
H144: CANTAGALLO
H145: CAÑASGORDAS
H146: CAPARRAPI
H147: CAPITANEJO
H148: CAQUEZA
H149: CARACOLI
H150: CARAMANTA
H151: CARCASI
H152: CAREPA
H153: CARMEN DE APICALA
H154: CARMEN DE CARUPA
H155: CARMEN DEL DARIEN
H156: CAROLINA
H157: CARTAGENA
H158: CARTAGENA DEL CHAIRA
H159: CARTAGO
H160: CARURU
H161: CASABIANCA
H162: CASTILLA LA NUEVA
H163: CAUCASIA
H164: CEPITA
H165: CERETE
H166: CERINZA
H167: CERRITO
H168: CERRO SAN ANTONIO
H169: CERTEGUI
H170: CHACHAGsI
H171: CHAGUANI
H172: CHALAN
H173: CHAMEZA
H174: CHAPARRAL
H175: CHARALA
H176: CHARTA
H177: CHIA
H178: CHIBOLO
H179: CHIGORODO
H180: CHIMA
H181: CHIMICHAGUA
H182: CHINACOTA
H183: CHINAVITA
H184: CHINCHINA
H185: CHINU
H186: CHIPAQUE
H187: CHIPATA
H188: CHIQUINQUIRA
H189: CHIQUIZA
H190: CHIRIGUANA
H191: CHISCAS
H192: CHITA
H193: CHITAGA
H194: CHITARAQUE
H195: CHIVATA
H196: CHIVOR
H197: CHOACHI
H198: CHOCONTA
H199: CICUCO
H200: CIENAGA
... 833 more rows

Sheet BASES CUENTA (hidden)
A1: Seleccionar | C1: Seleccionar | E1: Seleccionar | G1: Seleccionar | I1: Seleccionar | K1: Seleccionar
A2: Ahorros | C2: BANCO AGRARIO DE COLOMBIA S.A. | E2: ENERO | G2: YOLANDA REINOSA TANGARIFE | I2: ADRIANA CONSTANZA PINTO BARON ( E ) | K2: SUBDIRECCION DE PARTICIPACION
A3: Corriente | C3: BANCO CAJA SOCIAL BCSC S A | E3: FEBRERO | I3: AIDA SOLANO ESPINOSA | K3: GRUPO DE ENFOQUE PSICOSOCIAL
C4: BANCO COLPATRIA RED MULTIBANCA COLPATRIA S.A. | E4: MARZO | I4: ALFREDO ENRIQUE PALENCIA MOLINA | K4: DIRECCION TERRITORIAL ATLANTICO
C5: BANCO COMERCIAL AV VILLAS S.A. | E5: ABRIL | I5: ALICIA MARIA ROJAS PÉREZ | K5: DIRECCION TERRITORIAL NORTE DE SANTANDER Y ARAUCA
A6: Seleccionar | C6: BANCO DAVIVIENDA S.A. | E6: MAYO | I6: AMPARO CHICUE CRISTANCHO | K6: DIRECCION TERRITORIAL MAGDALENA MEDIO
A7: SI | C7: BANCO DE BOGOTA S. A. | E7: JUNIO | I7: ANA MARIA TORRES SANZ ( E ) | K7: GRUPO DE ENFOQUE DIFERENCIAL Y DE GENERO
A8: NO | C8: BANCO DE OCCIDENTE | E8: JULIO | I8: BEATRIZ CARMENZA OCHOA OSORIO | K8: SUBDIRECCION DE ASISTENCIA Y ATENCION HUMANITARIA
C9: BANCO GNB SUDAMERIS S A | E9: AGOSTO | I9: BEATRIZ CARMENZA OCHOA OSORIO (E) | K9: SUBDIRECCION DE PREVENCION Y EMERGENCIAS
C10: BANCO PICHINCHA | E10: SEPTIEMBRE | I10: CARLOS ALFREDO VARGAS | K10: GRUPO DE CONTROL INTERNO DISCIPLINARIO - SECRETARIA GENERAL
A11: Seleccionar | C11: BANCO POPULAR S. A. | E11: OCTUBRE | I11: CARLOS ARTURO ORDOÑEZ CASTRO | K11: OFICINA DE CONTROL INTERNO
A12: 1 | C12: BANCOLOMBIA S.A. | E12: NOVIEMBRE | I12: CARLOS ARTURO PARDO ALEZONES | K12: DIRECCION TERRITORIAL META Y LLANOS ORIENTALES
A13: 2 | C13: BANCOOMEVA | E13: DICIEMBRE | I13: CARMENZA CAROLINA COTES ROBAYO | K13: GRUPO DE GESTION DE LA OFERTA
A14: 3 | C14: BBVA - BANCO BILBAO VIZCAYA ARGENTARIA COLOMBIA S.A. | I14: CAROLINA MARIA MONCADA ZAPATA | K14: SECRETARIA GENERAL
A15: 4 | C15: CITIBANK COLOMBIA | I15: CLAUDIA VIVIANA FERRO BUITRAGO | K15: SUBDIRECCION GENERAL
A16: 5 | C16: CONFIAR COOPERATIVA FINANCIERA | I16: CLAUDIA VIVIANA FERRO BUITRAGO ( E ) | K16: DIRECCION DE ASUNTOS ETNICOS
A17: 6 | C17: HELM BANK S.A. | I17: DAN HARRY SÁNCHEZ COBO | K17: DIRECCION TERRITORIAL CAUCA
A18: 7 | C18: HSBC COLOMBIA S A | I18: DIANA CAROLINA GARRIDO LOZANO | K18: GRUPO REPARACION Y ATENCION DE LAS COMUNIDADES NEGRAS, AFROCOLOMBIANAS, RAIZALES Y PALENQUERAS
A19: 8 | C19: ITAU CORPBANCA COLOMBIA S A | I19: DIRECTORES TERRITORIALES | K19: DIRECCIONES TERRITORIALES
A20: 9 | C20: JURISCOOP SA FINANCIERA COMPAÑIA DE FINANCIAMIENTO | I20: EDGAR HERNANDO PINZÓN PÁEZ | K20: GRUPO DE GESTION DEL TALENTO HUMANO - SECRETARIA GENERAL
A21: 10 | I21: GERMAN RAMIRO NARVÁEZ BURBANO | K21: DIRECCION TERRITORIAL PUTUMAYO
A22: 11 | C22: Seleccionar | I22: GINNA MARIATORRES NIETO | K22: GRUPO DE ACTUACIONES ADMINISTRATIVAS Y CONCEPTOS - OFICINA ASESORA JURIDICA
A23: 12 | C23: Responsable del Impuesto a las Ventas | I23: GLADYS CONSUELO BARRERA PARRADO | K23: SUBDIRECCION DE VALORACION Y REGISTRO
C24: No responsable del impuesto a las ventas | I24: GONZALO GARCIA BAUTISTA | K24: DIRECCION TERRITORIAL SANTANDER
A25: Seleccionar | E25: Seleccionar | I25: ISAAC HERNANDEZ HERNANDEZ | K25: DIRECCION TERRITORIAL SUCRE
A26: 2019-01-01 | C26: Seleccionar | E26: 1 | I26: JAIR DAVID DIAZ GRANADOS CORREDOR | K26: DIRECCION TERRITORIAL MAGDALENA
A27: 2019-01-02 | C27: Contratista | E27: 2 | I27: JANETH ANGELICA SOLANO HERNANDEZ | K27: GRUPO DE GESTION CONTRACTUAL - SECRETARIA GENERAL
A28: 2019-01-03 | E28: 3 | I28: JOHN VLADIMIR MARTIN RAMOS | K28: OFICINA ASESORA JURIDICA
A29: 2019-01-04 | E29: 4 | I29: JOHN VLADIMIR MARTIN RAMOS (E) | K29: DIRECCION DE REPARACION
A30: 2019-01-05 | E30: 5 | I30: JOSE DOMINGO CARDENAS PINTO | K30: GRUPO PUEBLOS Y COMUNIDADES INDIGENAS
A31: 2019-01-06 | E31: 6 | I31: JUAN FELIPE ACOSTA PARRA ( E ) | K31: DIRECCION TERRITORIAL CENTRAL
A32: 2019-01-07 | E32: 7 | I32: JUAN FELIPE ACOSTA PARRA ( E ) | K32: DIRECCION TERRITORIAL CORDOBA
A33: 2019-01-08 | E33: 8 | I33: JUANA BAUTISTA RAMIREZ GUTIERREZ | K33: DIRECCION TERRITORIAL CESAR Y GUAJIRA
A34: 2019-01-09 | E34: 9 | I34: JUANITA IBAÑEZ SANTAMARIA | K34: SUBDIRECCION DE REPARACION COLECTIVA
A35: 2019-01-10 | E35: 10 | I35: JUANITA IBAÑEZ SANTAMARIA ( E ) | K35: DIRECCION DE GESTION INTERINSTITUCIONAL
A36: 2019-01-11 | E36: 11 | I36: KATHERINE LOREN MESA MAYORGA | K36: FONDO DE REPARACION
A37: 2019-01-12 | E37: 12 | I37: KATHERINE LOREN MESA MAYORGA (E) | K37: SUBDIRECCION DE REPARACION INDIVIDUAL
A38: 2019-01-13 | E38: 13 | I38: LAURA KATHERINE MORENO MEJIA | K38: DIRECCION TERRITORIAL EJE CAFETERO
A39: 2019-01-14 | E39: 14 | I39: LIZA NINELLY BOTELLO PAYARES | K39: GRUPO DE GESTION FINANCIERA - SECRETARIA GENERAL
A40: 2019-01-15 | E40: 15 | I40: LOLY CATALINA VAN LEENDEN DEL RIO | K40: GRUPO DE SERVICIO AL CIUDADANO
A41: 2019-01-16 | E41: 16 | I41: LUCRECIA MURCIA /SANDRA JHOVANA BELLO GUTIERREZ ( E) | K41: DIRECCION TERRITORIAL CAQUETA Y HUILA
A42: 2019-01-17 | E42: 17 | I42: LUZ ADRIANA TORO VELEZ | K42: DIRECCION TERRITORIAL VALLE
A43: 2019-01-18 | E43: 18 | I43: LUZ STELLA CARRILLO SILVA | K43: SUBDIRECCION DE COORDINACION TECNICA DEL SNARIV
A44: 2019-01-19 | E44: 19 | I44: MANUEL EDUARDO CASTILLO | K44: OFICINA ASESORA DE PLANEACION
A45: 2019-01-20 | E45: 20 | I45: MANUEL EDUARDO CASTILLO ( E ) | K45: OFICINA DE TECNOLOGIAS DE LA INFORMACION
A46: 2019-01-21 | E46: 21 | I46: MARIA DEL ROSARIO PALACIOS CORDOBA | K46: DIRECCION TERRITORIAL CHOCO
A47: 2019-01-22 | E47: 22 | I47: MARIA ELIZABETH GRANADA RIOS | K47: DIRECCION TERRITORIAL URABA
A48: 2019-01-23 | E48: 23 | I48: MARTHA PATRICIA ÁVILA FORERO | K48: OFICINA ASESORA DE COMUNICACIONES
A49: 2019-01-24 | E49: 24 | I49: MARTHA RAMIREZ USECHE | K49: SUBDIRECCION DE COORDINACION NACION TERRITORIO
A50: 2019-01-25 | E50: 25 | I50: MILEDY MARCELA GALEANO PAZ | K50: DIRECCION TERRITORIAL BOLIVAR
A51: 2019-01-26 | E51: 26 | I51: NICOLAS FERNANDEZ DE SOTO CAMACHO | K51: GRUPO DE COOPERACION INTERNACIONAL
A52: 2019-01-27 | E52: 27 | I52: OSCAR IVAN RICO VALENCIA | K52: GRUPO DE ATENCION A VICTIMAS EN EL EXTERIOR
A53: 2019-01-28 | E53: 28 | I53: PEDRO RAUL MEDINA CRISTANCHO | K53: GRUPO DE GESTION ADMINISTRATIVA Y GESTION DOCUMENTAL - SECRETARIA GENERAL
A54: 2019-01-29 | E54: 29 | I54: RAMON ALBERTO RODRIGUEZ ANDRADE | K54: DIRECCION DE GESTION SOCIAL Y HUMANITARIA
A55: 2019-01-30 | E55: 30 | I55: RAMON ALBERTO RODRIGUEZ ANDRADE (E) | K55: DIRECCION GENERAL
A56: 2019-01-31 | E56: 31 | I56: SANDRA DEL PILAR RAMIREZ BARRIOS | K56: SUBDIRECCION RED NACIONAL DE INFORMACION
A57: 2019-02-01 | I57: SANDRA DEL PILAR RAMIREZ BARRIOS ( E ) | K57: DIRECCION DE REGISTRO Y GESTION DE LA INFORMACION
A58: 2019-02-02 | I58: SAUL EDUARDO HERNANDEZ GARZON | K58: GRUPO DE DEFENSA JUDICIAL - OFICINA ASESORA JURIDICA
A59: 2019-02-03 | I59: WILLIAM ALEXANDER PINZON FERNANDEZ | K59: DIRECCION TERRITORIAL NARIÑO
A60: 2019-02-04 | I60: WILSON CÓRDOBA MENA | K60: DIRECCION TERRITORIAL ANTIOQUIA
A61: 2019-02-05 | I61: YOLANDA GUERRERO ACOSTA | K61: GRUPO DE RESPUESTA JUDICIAL
A62: 2019-02-06 | I62: YOLMAN HERNAN OSORIO SOLANO | K62: GRUPO DE RETORNOS Y REUBICACIONES
A63: 2019-02-07 | K63: GRUPO DE PROYECTOS TERRITORIALES PARA LA VIDA Y LA RECONCILIACION
A64: 2019-02-08 | K64: GRUPO REPARACION Y ATENCION DEL PUEBLO RROM O GITANO
A65: 2019-02-09
A66: 2019-02-10
A67: 2019-02-11
A68: 2019-02-12
A69: 2019-02-13
A70: 2019-02-14
A71: 2019-02-15
A72: 2019-02-16
A73: 2019-02-17
A74: 2019-02-18
A75: 2019-02-19
A76: 2019-02-20
A77: 2019-02-21
A78: 2019-02-22
A79: 2019-02-23
A80: 2019-02-24
A81: 2019-02-25
A82: 2019-02-26
A83: 2019-02-27
A84: 2019-02-28
A85: 2019-03-01
A86: 2019-03-02
A87: 2019-03-03
A88: 2019-03-04
A89: 2019-03-05
A90: 2019-03-06
A91: 2019-03-07
A92: 2019-03-08
A93: 2019-03-09
A94: 2019-03-10
A95: 2019-03-11
A96: 2019-03-12
A97: 2019-03-13
A98: 2019-03-14
A99: 2019-03-15
A100: 2019-03-16
A101: 2019-03-17
A102: 2019-03-18
A103: 2019-03-19
A104: 2019-03-20
A105: 2019-03-21
A106: 2019-03-22
A107: 2019-03-23
A108: 2019-03-24
A109: 2019-03-25
A110: 2019-03-26
A111: 2019-03-27
A112: 2019-03-28
A113: 2019-03-29
A114: 2019-03-30
A115: 2019-03-31
A116: 2019-04-01
A117: 2019-04-02
A118: 2019-04-03
A119: 2019-04-04
A120: 2019-04-05
A121: 2019-04-06
A122: 2019-04-07
A123: 2019-04-08
A124: 2019-04-09
A125: 2019-04-10
A126: 2019-04-11
A127: 2019-04-12
A128: 2019-04-13
A129: 2019-04-14
A130: 2019-04-15
A131: 2019-04-16
A132: 2019-04-17
A133: 2019-04-18
A134: 2019-04-19
A135: 2019-04-20
A136: 2019-04-21
A137: 2019-04-22
A138: 2019-04-23
A139: 2019-04-24
A140: 2019-04-25
A141: 2019-04-26
A142: 2019-04-27
A143: 2019-04-28
A144: 2019-04-29
A145: 2019-04-30
A146: 2019-05-01
A147: 2019-05-02
A148: 2019-05-03
A149: 2019-05-04
A150: 2019-05-05
A151: 2019-05-06
A152: 2019-05-07
A153: 2019-05-08
A154: 2019-05-09
A155: 2019-05-10
A156: 2019-05-11
A157: 2019-05-12
A158: 2019-05-13
A159: 2019-05-14
A160: 2019-05-15
A161: 2019-05-16
A162: 2019-05-17
A163: 2019-05-18
A164: 2019-05-19
A165: 2019-05-20
A166: 2019-05-21
A167: 2019-05-22
A168: 2019-05-23
A169: 2019-05-24
A170: 2019-05-25
A171: 2019-05-26
A172: 2019-05-27
A173: 2019-05-28
A174: 2019-05-29
A175: 2019-05-30
A176: 2019-05-31
A177: 2019-06-01
A178: 2019-06-02
A179: 2019-06-03
A180: 2019-06-04
A181: 2019-06-05
A182: 2019-06-06
A183: 2019-06-07
A184: 2019-06-08
A185: 2019-06-09
A186: 2019-06-10
A187: 2019-06-11
A188: 2019-06-12
A189: 2019-06-13
A190: 2019-06-14
A191: 2019-06-15
A192: 2019-06-16
A193: 2019-06-17
A194: 2019-06-18
A195: 2019-06-19
A196: 2019-06-20
A197: 2019-06-21
A198: 2019-06-22
A199: 2019-06-23
A200: 2019-06-24
... 190 more rows

Sheet Control de Cambios (hidden)
A1: Versión | B1: Fecha de Cambio | C1: Descripción de la modificación
A3: 1 | B3: 22 de Marzo de 2019 | C3: Creaciòn documento para pago de Contratos por concepto de honorarios y/o Prestaciòn de Servicios Personales
A5: Nota: Se debe registrar el control de cambios,pero esta hoja no se publica.
